[Event "Titled Tuesday Blitz August 1 Early 2023"]
[White "Krzyzanowski, Marcin"]
[Black "musclemonster12"]
[WhiteFideId "1132199"]
[WhiteElo "2788"]
[BlackElo "2615"]
[Result "1-0"]
[Round "8"]
[TimeControl "180+1"]
[Date "2023.08.01"]
[WhiteClock "0:00:05"]
[BlackClock "0:00:04"]
[Board "44"]

1. e4 {[%clk 0:03:00]}  c5 {[%clk 0:02:59]} 2. Nf3 {[%clk 0:03:00]}  d6 {[%clk 0:02:59]} 3. d4 {[%clk 0:02:59]}  cxd4 {[%clk 0:03:00]} 4. Nxd4 {[%clk 0:03:00]}  Nf6 {[%clk 0:03:00]} 5. Nc3 {[%clk 0:03:00]}  Nc6 {[%clk 0:03:01]} 6. Bc4 {[%clk 0:02:55]}  Qb6 {[%clk 0:03:00]} 7. Nb3 {[%clk 0:02:51]}  e6 {[%clk 0:03:00]} 8. Bf4 {[%clk 0:02:50]}  Ne5 {[%clk 0:02:58]} 9. Be2 {[%clk 0:02:49]}  Bd7 {[%clk 0:02:58]} 10. O-O {[%clk 0:02:40]}  Be7 {[%clk 0:02:52]} 11. Be3 {[%clk 0:02:34]}  Qc7 {[%clk 0:02:52]} 12. Nb5 {[%clk 0:02:21]}  Bxb5 {[%clk 0:01:53]} 13. Bxb5+ {[%clk 0:02:21]}  Ned7 {[%clk 0:01:46]} 14. Bd3 {[%clk 0:02:04]}  d5 {[%clk 0:01:30]} 15. exd5 {[%clk 0:02:01]}  Nxd5 {[%clk 0:01:30]} 16. Bd4 {[%clk 0:01:50]}  O-O {[%clk 0:01:30]} 17. Re1 {[%clk 0:01:42]}  Bf6 {[%clk 0:01:24]} 18. c3 {[%clk 0:01:36]}  Bxd4 {[%clk 0:01:21]} 19. Nxd4 {[%clk 0:01:36]}  N7f6 {[%clk 0:01:21]} 20. Qf3 {[%clk 0:01:31]}  a6 {[%clk 0:01:21]} 21. Rad1 {[%clk 0:01:31]}  Rad8 {[%clk 0:01:21]} 22. Bb1 {[%clk 0:01:26]}  Qf4 {[%clk 0:01:20]} 23. Qxf4 {[%clk 0:01:24]}  Nxf4 {[%clk 0:01:21]} 24. g3 {[%clk 0:01:24]}  N4d5 {[%clk 0:01:21]} 25. Nb3 {[%clk 0:01:23]}  b6 {[%clk 0:01:05]} 26. Rd4 {[%clk 0:01:22]}  Ne7 {[%clk 0:00:40]} 27. Red1 {[%clk 0:01:22]}  Rxd4 {[%clk 0:00:40]} 28. Rxd4 {[%clk 0:01:23]}  Nc6 {[%clk 0:00:40]} 29. Rd6 {[%clk 0:01:16]}  Rc8 {[%clk 0:00:40]} 30. f4 {[%clk 0:01:04]}  Kf8 {[%clk 0:00:40]} 31. Bd3 {[%clk 0:00:38]}  b5 {[%clk 0:00:27]} 32. Bf1 {[%clk 0:00:31]}  Ke7 {[%clk 0:00:27]} 33. Rd1 {[%clk 0:00:29]}  Rd8 {[%clk 0:00:13]} 34. Rxd8 {[%clk 0:00:29]}  Kxd8 {[%clk 0:00:14]} 35. Nc5 {[%clk 0:00:29]}  Nb8 {[%clk 0:00:15]} 36. Kf2 {[%clk 0:00:29]}  Kc7 {[%clk 0:00:15]} 37. Be2 {[%clk 0:00:27]}  Kb6 {[%clk 0:00:15]} 38. Nd3 {[%clk 0:00:24]}  Nc6 {[%clk 0:00:14]} 39. g4 {[%clk 0:00:25]}  Nd7 {[%clk 0:00:14]} 40. g5 {[%clk 0:00:23]}  a5 {[%clk 0:00:14]} 41. Ke3 {[%clk 0:00:23]}  a4 {[%clk 0:00:14]} 42. h4 {[%clk 0:00:22]}  Kc7 {[%clk 0:00:14]} 43. h5 {[%clk 0:00:22]}  Kd6 {[%clk 0:00:15]} 44. Nf2 {[%clk 0:00:22]}  Nc5 {[%clk 0:00:14]} 45. Bd1 {[%clk 0:00:23]}  Ne7 {[%clk 0:00:14]} 46. Bf3 {[%clk 0:00:21]}  Nf5+ {[%clk 0:00:14]} 47. Kd2 {[%clk 0:00:20]}  g6 {[%clk 0:00:14]} 48. hxg6 {[%clk 0:00:20]}  hxg6 {[%clk 0:00:15]} 49. Ng4 {[%clk 0:00:19]}  Ng7 {[%clk 0:00:13]} 50. Ne5 {[%clk 0:00:17]}  Ke7 {[%clk 0:00:12]} 51. Bc6 {[%clk 0:00:17]}  Nh5 {[%clk 0:00:13]} 52. Ke3 {[%clk 0:00:17]}  f6 {[%clk 0:00:08]} 53. gxf6+ {[%clk 0:00:17]}  Nxf6 {[%clk 0:00:09]} 54. Bxb5 {[%clk 0:00:16]}  Kd6 {[%clk 0:00:09]} 55. Bc4 {[%clk 0:00:14]}  Nfd7 {[%clk 0:00:03]} 56. Nxg6 {[%clk 0:00:13]}  Nb6 {[%clk 0:00:03]} 57. Be2 {[%clk 0:00:09]}  Nd5+ {[%clk 0:00:03]} 58. Kd4 {[%clk 0:00:08]}  a3 {[%clk 0:00:03]} 59. b4 {[%clk 0:00:08]}  Nb3+ {[%clk 0:00:03]} 60. Kc4 {[%clk 0:00:07]}  Nc1 {[%clk 0:00:03]} 61. Bd1 {[%clk 0:00:04]}  Ne3+ {[%clk 0:00:03]} 62. Kd4 {[%clk 0:00:03]}  Nxd1 {[%clk 0:00:04]} 63. Ne5 {[%clk 0:00:03]}  Nxa2 {[%clk 0:00:05]} 64. Nc4+ {[%clk 0:00:04]}  Kc6 {[%clk 0:00:06]} 65. Nxa3 {[%clk 0:00:04]}  Nc1 {[%clk 0:00:06]} 66. c4 {[%clk 0:00:03]}  Nb3+ {[%clk 0:00:06]} 67. Ke5 {[%clk 0:00:03]}  Nd2 {[%clk 0:00:06]} 68. c5 {[%clk 0:00:03]}  Ne3 {[%clk 0:00:07]} 69. Kxe6 {[%clk 0:00:03]}  Nd5 {[%clk 0:00:07]} 70. f5 {[%clk 0:00:04]}  Nf3 {[%clk 0:00:07]} 71. f6 {[%clk 0:00:04]}  Nd4+ {[%clk 0:00:07]} 72. Ke5 {[%clk 0:00:05]}  Nxf6 {[%clk 0:00:08]} 73. Kxd4 {[%clk 0:00:04]}  Nd5 {[%clk 0:00:04]} 74. b5+ {[%clk 0:00:05]} 1-0


[Site "https://www.chess.com"]

[Event "Titled Tuesday Blitz August 1 Early 2023"]
[White "Cherniaiev, Tykhon"]
[Black "Sturt, Raven"]
[WhiteFideId "14182360"]
[BlackFideId "2007304"]
[WhiteElo "2753"]
[BlackElo "2601"]
[Result "1-0"]
[Round "8"]
[TimeControl "180+1"]
[Date "2023.08.01"]
[WhiteClock "0:00:07"]
[BlackClock "0:00:02"]
[Board "46"]

1. Nf3 {[%clk 0:03:00]}  f5 {[%clk 0:02:57]} 2. d3 {[%clk 0:03:01]}  Nc6 {[%clk 0:02:57]} 3. e4 {[%clk 0:03:01]}  e5 {[%clk 0:02:56]} 4. Nc3 {[%clk 0:02:59]}  Nf6 {[%clk 0:02:53]} 5. exf5 {[%clk 0:02:59]}  d5 {[%clk 0:02:39]} 6. d4 {[%clk 0:02:59]}  e4 {[%clk 0:02:39]} 7. Ne5 {[%clk 0:02:57]}  Bxf5 {[%clk 0:02:39]} 8. Bb5 {[%clk 0:02:54]}  Bd7 {[%clk 0:02:39]} 9. O-O {[%clk 0:02:34]}  Bd6 {[%clk 0:02:26]} 10. Bxc6 {[%clk 0:02:15]}  bxc6 {[%clk 0:02:24]} 11. Bf4 {[%clk 0:02:13]}  O-O {[%clk 0:02:23]} 12. f3 {[%clk 0:02:09]}  exf3 {[%clk 0:02:00]} 13. Qxf3 {[%clk 0:02:01]}  Rb8 {[%clk 0:01:59]} 14. b3 {[%clk 0:01:51]}  Rb4 {[%clk 0:01:59]} 15. Qd3 {[%clk 0:01:39]}  c5 {[%clk 0:01:39]} 16. dxc5 {[%clk 0:01:20]}  Bxc5+ {[%clk 0:01:39]} 17. Kh1 {[%clk 0:01:20]}  Rd4 {[%clk 0:01:35]} 18. Qa6 {[%clk 0:01:12]}  Bc8 {[%clk 0:01:14]} 19. Qb5 {[%clk 0:01:08]}  Bd6 {[%clk 0:01:11]} 20. Nc6 {[%clk 0:01:07]}  Bd7 {[%clk 0:01:04]} 21. Bxd6 {[%clk 0:00:36]}  Bxc6 {[%clk 0:00:52]} 22. Qc5 {[%clk 0:00:36]}  Qxd6 {[%clk 0:00:51]} 23. Qxd4 {[%clk 0:00:36]}  Bd7 {[%clk 0:00:44]} 24. h3 {[%clk 0:00:28]}  c5 {[%clk 0:00:44]} 25. Qf4 {[%clk 0:00:28]}  Qxf4 {[%clk 0:00:26]} 26. Rxf4 {[%clk 0:00:29]}  g5 {[%clk 0:00:26]} 27. Rff1 {[%clk 0:00:19]}  d4 {[%clk 0:00:26]} 28. Na4 {[%clk 0:00:19]}  Bxa4 {[%clk 0:00:23]} 29. bxa4 {[%clk 0:00:20]}  Kg7 {[%clk 0:00:23]} 30. Rf5 {[%clk 0:00:20]}  Ne4 {[%clk 0:00:19]} 31. Re5 {[%clk 0:00:19]}  Rf4 {[%clk 0:00:18]} 32. Re1 {[%clk 0:00:17]}  Ng3+ {[%clk 0:00:17]} 33. Kh2 {[%clk 0:00:18]}  Nf1+ {[%clk 0:00:17]} 34. Kg1 {[%clk 0:00:18]}  Ne3 {[%clk 0:00:17]} 35. Rxg5+ {[%clk 0:00:18]}  Kf6 {[%clk 0:00:16]} 36. Rxc5 {[%clk 0:00:19]}  h5 {[%clk 0:00:16]} 37. c3 {[%clk 0:00:14]}  Nc2 {[%clk 0:00:15]} 38. Re8 {[%clk 0:00:14]}  d3 {[%clk 0:00:14]} 39. Rf8+ {[%clk 0:00:14]}  Ke6 {[%clk 0:00:11]} 40. Rd8 {[%clk 0:00:08]}  Nd4 {[%clk 0:00:04]} 41. Re8+ {[%clk 0:00:04]}  Kd6 {[%clk 0:00:04]} 42. Re1 {[%clk 0:00:04]}  Kxc5 {[%clk 0:00:04]} 43. cxd4+ {[%clk 0:00:04]}  Kxd4 {[%clk 0:00:05]} 44. g3 {[%clk 0:00:05]}  Rf3 {[%clk 0:00:04]} 45. Kg2 {[%clk 0:00:06]}  Re3 {[%clk 0:00:04]} 46. Rf1 {[%clk 0:00:06]}  d2 {[%clk 0:00:05]} 47. Kf2 {[%clk 0:00:05]}  Kd3 {[%clk 0:00:06]} 48. Rb1 {[%clk 0:00:06]}  Re2+ {[%clk 0:00:06]} 49. Kf1 {[%clk 0:00:06]}  Rh2 {[%clk 0:00:06]} 50. Kg1 {[%clk 0:00:05]}  Re2 {[%clk 0:00:06]} 51. Kf1 {[%clk 0:00:05]}  Kc2 {[%clk 0:00:06]} 52. Kxe2 {[%clk 0:00:05]}  Kxb1 {[%clk 0:00:06]} 53. Kxd2 {[%clk 0:00:06]}  Kxa2 {[%clk 0:00:02]} 54. g4 {[%clk 0:00:07]} 1-0


[Site "https://www.chess.com"]

[Event "Titled Tuesday Blitz August 1 Early 2023"]
[White "Lana Rodriguez, David"]
[Black "Weetik, Vjacheslav"]
[WhiteFideId "2270803"]
[BlackFideId "4153472"]
[WhiteElo "2596"]
[BlackElo "2745"]
[Result "1-0"]
[Round "8"]
[TimeControl "180+1"]
[Date "2023.08.01"]
[WhiteClock "0:01:31"]
[BlackClock "0:00:00"]
[Board "47"]

1. e4 {[%clk 0:03:00]}  c6 {[%clk 0:02:59]} 2. Nf3 {[%clk 0:03:00]}  d5 {[%clk 0:02:59]} 3. exd5 {[%clk 0:03:01]}  cxd5 {[%clk 0:02:59]} 4. d4 {[%clk 0:03:02]}  Nc6 {[%clk 0:02:59]} 5. c3 {[%clk 0:03:03]}  Bg4 {[%clk 0:02:58]} 6. Bb5 {[%clk 0:03:03]}  Qc7 {[%clk 0:02:56]} 7. Nbd2 {[%clk 0:03:01]}  e6 {[%clk 0:02:55]} 8. Qa4 {[%clk 0:03:01]}  Bxf3 {[%clk 0:02:38]} 9. Nxf3 {[%clk 0:03:02]}  Bd6 {[%clk 0:02:38]} 10. O-O {[%clk 0:03:00]}  Ne7 {[%clk 0:02:37]} 11. Re1 {[%clk 0:02:57]}  O-O {[%clk 0:02:33]} 12. Bg5 {[%clk 0:02:57]}  Ng6 {[%clk 0:02:17]} 13. Bd3 {[%clk 0:02:55]}  a6 {[%clk 0:02:09]} 14. Qd1 {[%clk 0:02:54]}  Nf4 {[%clk 0:01:51]} 15. Bc2 {[%clk 0:02:50]}  Rae8 {[%clk 0:01:36]} 16. Rc1 {[%clk 0:02:50]}  Ng6 {[%clk 0:01:29]} 17. Bxg6 {[%clk 0:02:48]}  hxg6 {[%clk 0:01:27]} 18. Bh4 {[%clk 0:02:48]}  f6 {[%clk 0:01:12]} 19. Bg3 {[%clk 0:02:44]}  g5 {[%clk 0:01:07]} 20. Qd3 {[%clk 0:02:40]}  Bf4 {[%clk 0:01:03]} 21. Bxf4 {[%clk 0:02:36]}  gxf4 {[%clk 0:01:01]} 22. Re2 {[%clk 0:02:34]}  Qf7 {[%clk 0:00:42]} 23. Rce1 {[%clk 0:02:34]}  Re7 {[%clk 0:00:42]} 24. h4 {[%clk 0:02:33]}  Rfe8 {[%clk 0:00:38]} 25. Qd2 {[%clk 0:02:33]}  e5 {[%clk 0:00:36]} 26. dxe5 {[%clk 0:02:34]}  Nxe5 {[%clk 0:00:33]} 27. Qxf4 {[%clk 0:02:19]}  Nd3 {[%clk 0:00:12]} 28. Rxe7 {[%clk 0:02:18]}  Rxe7 {[%clk 0:00:10]} 29. Rxe7 {[%clk 0:01:59]}  Qxe7 {[%clk 0:00:11]} 30. Qd2 {[%clk 0:01:58]}  Qe4 {[%clk 0:00:09]} 31. Kf1 {[%clk 0:01:56]}  Nf4 {[%clk 0:00:09]} 32. Ne1 {[%clk 0:01:51]}  Ng6 {[%clk 0:00:05]} 33. g3 {[%clk 0:01:49]}  Ne5 {[%clk 0:00:05]} 34. Qd4 {[%clk 0:01:39]}  Qh1+ {[%clk 0:00:04]} 35. Ke2 {[%clk 0:01:40]}  Kf7 {[%clk 0:00:03]} 36. b3 {[%clk 0:01:39]}  Ke6 {[%clk 0:00:03]} 37. Qb6+ {[%clk 0:01:35]}  Kf5 {[%clk 0:00:03]} 38. Qd4 {[%clk 0:01:35]}  Ke6 {[%clk 0:00:03]} 39. Qe3 {[%clk 0:01:34]}  Kf5 {[%clk 0:00:03]} 40. Nd3 {[%clk 0:01:31]}  Ng4 {[%clk 0:00:00]} 41. Qf4+ {[%clk 0:01:31]} 1-0


[Site "https://www.chess.com"]

[Event "Titled Tuesday Blitz August 1 Early 2023"]
[White "Gireman, Ja"]
[Black "Fantastic_Power"]
[WhiteFideId "5043794"]
[WhiteElo "2594"]
[BlackElo "2739"]
[Result "0-1"]
[Round "8"]
[TimeControl "180+1"]
[Date "2023.08.01"]
[WhiteClock "0:00:07"]
[BlackClock "0:01:01"]
[Board "48"]

1. e4 {[%clk 0:03:00]}  c5 {[%clk 0:02:58]} 2. Nf3 {[%clk 0:03:00]}  Nc6 {[%clk 0:02:57]} 3. d4 {[%clk 0:03:00]}  cxd4 {[%clk 0:02:58]} 4. Nxd4 {[%clk 0:03:01]}  Nf6 {[%clk 0:02:58]} 5. Nc3 {[%clk 0:03:01]}  e6 {[%clk 0:02:59]} 6. Be2 {[%clk 0:03:00]}  Bb4 {[%clk 0:02:53]} 7. Nxc6 {[%clk 0:02:59]}  bxc6 {[%clk 0:02:52]} 8. O-O {[%clk 0:02:58]}  e5 {[%clk 0:02:47]} 9. f4 {[%clk 0:02:54]}  d6 {[%clk 0:02:35]} 10. fxe5 {[%clk 0:02:52]}  dxe5 {[%clk 0:02:36]} 11. Qxd8+ {[%clk 0:02:51]}  Kxd8 {[%clk 0:02:37]} 12. Bg5 {[%clk 0:02:46]}  Be7 {[%clk 0:02:37]} 13. Kh1 {[%clk 0:02:40]}  Be6 {[%clk 0:02:36]} 14. b4 {[%clk 0:02:24]}  Bxb4 {[%clk 0:02:18]} 15. Rxf6 {[%clk 0:02:23]}  gxf6 {[%clk 0:02:19]} 16. Bxf6+ {[%clk 0:02:23]}  Kc7 {[%clk 0:02:13]} 17. Bxe5+ {[%clk 0:02:22]}  Bd6 {[%clk 0:02:12]} 18. Bxh8 {[%clk 0:02:20]}  Rxh8 {[%clk 0:02:13]} 19. Rd1 {[%clk 0:02:06]}  Be5 {[%clk 0:02:05]} 20. Na4 {[%clk 0:02:05]}  Rd8 {[%clk 0:01:52]} 21. Rxd8 {[%clk 0:01:10]}  Kxd8 {[%clk 0:01:52]} 22. c4 {[%clk 0:01:11]}  Bd4 {[%clk 0:01:43]} 23. Bd3 {[%clk 0:01:11]}  Kc7 {[%clk 0:01:37]} 24. g3 {[%clk 0:01:06]}  Bh3 {[%clk 0:01:28]} 25. Be2 {[%clk 0:01:02]}  h6 {[%clk 0:01:23]} 26. Bf3 {[%clk 0:00:53]}  Kb7 {[%clk 0:01:21]} 27. g4 {[%clk 0:00:49]}  Ka6 {[%clk 0:01:14]} 28. e5 {[%clk 0:00:49]}  c5 {[%clk 0:01:08]} 29. a3 {[%clk 0:00:25]}  Ka5 {[%clk 0:01:07]} 30. Bd1 {[%clk 0:00:07]}  a6 {[%clk 0:01:01]} 0-1


[Site "https://www.chess.com"]

[Event "Titled Tuesday Blitz August 1 Early 2023"]
[White "Ardelean, George-Catalin"]
[Black "Tikhonov, Viacheslav"]
[WhiteFideId "1207091"]
[BlackFideId "44196407"]
[WhiteElo "2712"]
[BlackElo "2514"]
[Result "0-1"]
[Round "8"]
[TimeControl "180+1"]
[Date "2023.08.01"]
[WhiteClock "0:00:00"]
[BlackClock "0:00:13"]
[Board "54"]

1. d4 {[%clk 0:03:00]}  Nf6 {[%clk 0:02:59]} 2. Bf4 {[%clk 0:03:00]}  g6 {[%clk 0:02:55]} 3. Nc3 {[%clk 0:02:59]}  d5 {[%clk 0:02:54]} 4. e3 {[%clk 0:02:59]}  c6 {[%clk 0:02:53]} 5. Nf3 {[%clk 0:02:46]}  Bg7 {[%clk 0:02:49]} 6. Ne5 {[%clk 0:02:45]}  O-O {[%clk 0:02:48]} 7. h4 {[%clk 0:02:45]}  Na6 {[%clk 0:02:25]} 8. h5 {[%clk 0:02:40]}  Nxh5 {[%clk 0:01:57]} 9. Rxh5 {[%clk 0:02:39]}  gxh5 {[%clk 0:01:58]} 10. Qxh5 {[%clk 0:02:39]}  Qe8 {[%clk 0:01:49]} 11. Qh2 {[%clk 0:02:29]}  f6 {[%clk 0:01:45]} 12. Bd3 {[%clk 0:02:19]}  f5 {[%clk 0:01:41]} 13. Kd2 {[%clk 0:02:07]}  Rf6 {[%clk 0:01:24]} 14. Rh1 {[%clk 0:02:06]}  h6 {[%clk 0:01:24]} 15. Ne2 {[%clk 0:01:35]}  Nb4 {[%clk 0:01:23]} 16. Ng3 {[%clk 0:01:34]}  Nxd3 {[%clk 0:01:20]} 17. cxd3 {[%clk 0:01:33]}  Be6 {[%clk 0:00:44]} 18. Nh5 {[%clk 0:01:30]}  Qf8 {[%clk 0:00:39]} 19. Qg3 {[%clk 0:01:21]}  Kh7 {[%clk 0:00:31]} 20. Rh4 {[%clk 0:01:11]}  Bf7 {[%clk 0:00:16]} 21. Nxf6+ {[%clk 0:01:07]}  exf6 {[%clk 0:00:17]} 22. Nd7 {[%clk 0:00:53]}  Qb4+ {[%clk 0:00:16]} 23. Kc2 {[%clk 0:00:48]}  h5 {[%clk 0:00:16]} 24. Bd6 {[%clk 0:00:40]}  Qa4+ {[%clk 0:00:15]} 25. Kc1 {[%clk 0:00:40]}  Rd8 {[%clk 0:00:15]} 26. Bf8 {[%clk 0:00:34]}  Rxf8 {[%clk 0:00:14]} 27. Nxf8+ {[%clk 0:00:32]}  Bxf8 {[%clk 0:00:15]} 28. Qc7 {[%clk 0:00:31]}  Kg8 {[%clk 0:00:12]} 29. Rh3 {[%clk 0:00:30]}  Qb4 {[%clk 0:00:12]} 30. Rg3+ {[%clk 0:00:29]}  Bg7 {[%clk 0:00:12]} 31. a3 {[%clk 0:00:19]}  Qe1+ {[%clk 0:00:11]} 32. Kc2 {[%clk 0:00:19]}  Qxf2+ {[%clk 0:00:12]} 33. Kb1 {[%clk 0:00:19]}  f4 {[%clk 0:00:12]} 34. Qc8+ {[%clk 0:00:13]}  Kh7 {[%clk 0:00:12]} 35. Qf5+ {[%clk 0:00:13]}  Kh6 {[%clk 0:00:11]} 36. Qxf4+ {[%clk 0:00:10]}  Qxf4 {[%clk 0:00:12]} 37. exf4 {[%clk 0:00:11]}  h4 {[%clk 0:00:13]} 38. Re3 {[%clk 0:00:12]}  Bg6 {[%clk 0:00:12]} 39. Re7 {[%clk 0:00:12]}  Bxd3+ {[%clk 0:00:12]} 40. Kc1 {[%clk 0:00:13]}  Be4 {[%clk 0:00:12]} 41. Rxb7 {[%clk 0:00:00]}  Bxg2 {[%clk 0:00:13]} 0-1


[Site "https://www.chess.com"]

[Event "Titled Tuesday Blitz August 1 Early 2023"]
[White "Garcia Almaguer, Juan Manuel"]
[Black "Do Valle Cardoso, Lucas"]
[WhiteFideId "5110491"]
[BlackFideId "2163144"]
[WhiteElo "2491"]
[BlackElo "2672"]
[Result "0-1"]
[Round "8"]
[TimeControl "180+1"]
[Date "2023.08.01"]
[WhiteClock "0:02:02"]
[BlackClock "0:02:05"]
[Board "56"]

1. e4 {[%clk 0:03:00]}  c5 {[%clk 0:02:55]} 2. Nf3 {[%clk 0:03:00]}  d6 {[%clk 0:02:54]} 3. d4 {[%clk 0:03:00]}  cxd4 {[%clk 0:02:55]} 4. Nxd4 {[%clk 0:03:01]}  Nf6 {[%clk 0:02:56]} 5. Nc3 {[%clk 0:03:00]}  a6 {[%clk 0:02:56]} 6. Be2 {[%clk 0:02:55]}  e5 {[%clk 0:02:54]} 7. Nb3 {[%clk 0:02:56]}  Be7 {[%clk 0:02:55]} 8. Be3 {[%clk 0:02:56]}  Be6 {[%clk 0:02:53]} 9. Qd3 {[%clk 0:02:54]}  O-O {[%clk 0:02:52]} 10. a4 {[%clk 0:02:54]}  Nc6 {[%clk 0:02:48]} 11. Nd5 {[%clk 0:02:50]}  Bxd5 {[%clk 0:02:44]} 12. exd5 {[%clk 0:02:50]}  Nb4 {[%clk 0:02:45]} 13. Qf5 {[%clk 0:02:49]}  g6 {[%clk 0:02:44]} 14. Qh3 {[%clk 0:02:48]}  Nxc2+ {[%clk 0:02:44]} 15. Kd2 {[%clk 0:02:46]}  Nxa1 {[%clk 0:02:43]} 16. Rxa1 {[%clk 0:02:47]}  Nxd5 {[%clk 0:02:44]} 17. Bh6 {[%clk 0:02:44]}  Bg5+ {[%clk 0:02:43]} 18. Ke1 {[%clk 0:02:42]}  Bxh6 {[%clk 0:02:43]} 19. Qxh6 {[%clk 0:02:43]}  Qb6 {[%clk 0:02:42]} 20. Nd2 {[%clk 0:02:40]}  Qxb2 {[%clk 0:02:38]} 21. Rb1 {[%clk 0:02:41]}  Qc3 {[%clk 0:02:37]} 22. Rxb7 {[%clk 0:02:36]}  Rab8 {[%clk 0:02:32]} 23. Rxb8 {[%clk 0:02:35]}  Rxb8 {[%clk 0:02:32]} 24. Bc4 {[%clk 0:02:32]}  Nf6 {[%clk 0:02:22]} 25. Qh4 {[%clk 0:02:24]}  Kg7 {[%clk 0:02:12]} 26. Ke2 {[%clk 0:02:19]}  d5 {[%clk 0:02:10]} 27. Bxa6 {[%clk 0:02:12]}  Rb4 {[%clk 0:02:11]} 28. Qg5 {[%clk 0:02:11]}  Rxa4 {[%clk 0:02:06]} 29. Qxe5 {[%clk 0:02:02]}  Qxe5+ {[%clk 0:02:05]} 0-1


[Site "https://www.chess.com"]

[Event "Titled Tuesday Blitz August 1 Early 2023"]
[White "Gardezi, Arsal"]
[Black "Malek, Jan"]
[WhiteFideId "30949521"]
[BlackFideId "21864080"]
[WhiteElo "2306"]
[BlackElo "2642"]
[Result "0-1"]
[Round "8"]
[TimeControl "180+1"]
[Date "2023.08.01"]
[WhiteClock "0:02:03"]
[BlackClock "0:02:07"]
[Board "59"]

1. e4 {[%clk 0:03:00]}  c6 {[%clk 0:02:58]} 2. Nf3 {[%clk 0:03:01]}  d5 {[%clk 0:02:58]} 3. exd5 {[%clk 0:03:01]}  cxd5 {[%clk 0:02:57]} 4. d4 {[%clk 0:03:01]}  Nc6 {[%clk 0:02:55]} 5. Bd3 {[%clk 0:03:01]}  Bg4 {[%clk 0:02:54]} 6. c3 {[%clk 0:03:01]}  e6 {[%clk 0:02:54]} 7. Nbd2 {[%clk 0:02:59]}  Bd6 {[%clk 0:02:55]} 8. Nf1 {[%clk 0:02:58]}  Nf6 {[%clk 0:02:51]} 9. Ng3 {[%clk 0:02:58]}  Qc7 {[%clk 0:02:40]} 10. O-O {[%clk 0:02:50]}  h5 {[%clk 0:02:38]} 11. Bg5 {[%clk 0:02:45]}  h4 {[%clk 0:02:37]} 12. Ne2 {[%clk 0:02:31]}  h3 {[%clk 0:02:31]} 13. Ng3 {[%clk 0:02:27]}  hxg2 {[%clk 0:02:29]} 14. Kxg2 {[%clk 0:02:28]}  Bh3+ {[%clk 0:02:18]} 15. Kg1 {[%clk 0:02:27]}  Bxf1 {[%clk 0:02:18]} 16. Qxf1 {[%clk 0:02:27]}  Ng4 {[%clk 0:02:14]} 17. c4 {[%clk 0:02:21]}  Nxh2 {[%clk 0:02:07]} 18. Nxh2 {[%clk 0:02:10]}  Bxg3 {[%clk 0:02:08]} 19. fxg3 {[%clk 0:02:08]}  Qxg3+ {[%clk 0:02:08]} 20. Qg2 {[%clk 0:02:08]}  Qxd3 {[%clk 0:02:09]} 21. cxd5 {[%clk 0:02:08]}  Qxd4+ {[%clk 0:02:07]} 22. Kh1 {[%clk 0:02:03]}  Qxd5 {[%clk 0:02:07]} 0-1


[Site "https://www.chess.com"]

[Event "Titled Tuesday Blitz August 1 Early 2023"]
[White "Dinosaurio_1975"]
[Black "Ashraf, Artin"]
[BlackFideId "22514805"]
[WhiteElo "2556"]
[BlackElo "2839"]
[Result "0-1"]
[Round "8"]
[TimeControl "180+1"]
[Date "2023.08.01"]
[WhiteClock "0:00:05"]
[BlackClock "0:00:18"]
[Board "60"]

1. e4 {[%clk 0:03:00]}  a6 {[%clk 0:02:57]} 2. d4 {[%clk 0:03:00]}  c6 {[%clk 0:02:58]} 3. f4 {[%clk 0:02:54]}  d5 {[%clk 0:02:57]} 4. e5 {[%clk 0:02:54]}  Bf5 {[%clk 0:02:56]} 5. Nf3 {[%clk 0:02:54]}  e6 {[%clk 0:02:52]} 6. h3 {[%clk 0:02:53]}  c5 {[%clk 0:02:49]} 7. c3 {[%clk 0:02:53]}  Nc6 {[%clk 0:02:46]} 8. Be3 {[%clk 0:02:53]}  cxd4 {[%clk 0:02:45]} 9. cxd4 {[%clk 0:02:53]}  Nge7 {[%clk 0:02:42]} 10. a3 {[%clk 0:02:49]}  Be4 {[%clk 0:02:41]} 11. Nc3 {[%clk 0:02:47]}  Nf5 {[%clk 0:02:42]} 12. Bf2 {[%clk 0:02:46]}  Bxf3 {[%clk 0:02:39]} 13. Qxf3 {[%clk 0:02:38]}  Nfxd4 {[%clk 0:02:32]} 14. Qd1 {[%clk 0:02:37]}  Qb6 {[%clk 0:02:24]} 15. Rb1 {[%clk 0:02:20]}  Bc5 {[%clk 0:02:16]} 16. Bd3 {[%clk 0:02:17]}  Nb3 {[%clk 0:02:08]} 17. Bxc5 {[%clk 0:02:14]}  Nxc5 {[%clk 0:02:06]} 18. Bc2 {[%clk 0:02:09]}  Nd7 {[%clk 0:01:51]} 19. Qd3 {[%clk 0:02:01]}  g6 {[%clk 0:01:45]} 20. h4 {[%clk 0:01:56]}  h5 {[%clk 0:01:43]} 21. b4 {[%clk 0:01:49]}  Rc8 {[%clk 0:01:40]} 22. Na4 {[%clk 0:01:46]}  Qa7 {[%clk 0:01:35]} 23. Rd1 {[%clk 0:01:37]}  Ne7 {[%clk 0:01:32]} 24. Nc3 {[%clk 0:01:24]}  Nf5 {[%clk 0:01:26]} 25. Ke2 {[%clk 0:01:17]}  Rc4 {[%clk 0:01:10]} 26. g3 {[%clk 0:00:49]}  O-O {[%clk 0:01:06]} 27. Bb1 {[%clk 0:00:09]}  Rfc8 {[%clk 0:01:04]} 28. Na4 {[%clk 0:00:09]}  Re4+ {[%clk 0:00:52]} 29. Kf1 {[%clk 0:00:05]}  Re3 {[%clk 0:00:45]} 30. Qd2 {[%clk 0:00:03]}  Nxg3+ {[%clk 0:00:33]} 31. Kg2 {[%clk 0:00:03]}  Re2+ {[%clk 0:00:34]} 32. Qxe2 {[%clk 0:00:02]}  Nxe2 {[%clk 0:00:34]} 33. Kf3 {[%clk 0:00:02]}  Nxf4 {[%clk 0:00:32]} 34. Kxf4 {[%clk 0:00:03]}  Qf2+ {[%clk 0:00:32]} 35. Kg5 {[%clk 0:00:03]}  Qg3+ {[%clk 0:00:28]} 36. Kh6 {[%clk 0:00:03]}  Nxe5 {[%clk 0:00:25]} 37. Rdf1 {[%clk 0:00:04]}  Kh8 {[%clk 0:00:20]} 38. Rhg1 {[%clk 0:00:04]}  Qe3+ {[%clk 0:00:20]} 39. Rg5 {[%clk 0:00:05]}  Ng4# {[%clk 0:00:18]} 0-1


[Site "https://www.chess.com"]

[Event "Titled Tuesday Blitz August 1 Early 2023"]
[White "Hoang, Thi Bao Tram"]
[Black "Xu, Yi"]
[WhiteFideId "12401102"]
[BlackFideId "8605564"]
[WhiteElo "2543"]
[BlackElo "2734"]
[Result "1-0"]
[Round "8"]
[TimeControl "180+1"]
[Date "2023.08.01"]
[WhiteClock "0:01:44"]
[BlackClock "0:00:00"]
[Board "64"]

1. Nf3 {[%clk 0:03:00]}  d5 {[%clk 0:02:59]} 2. g3 {[%clk 0:02:59]}  g6 {[%clk 0:03:00]} 3. Bg2 {[%clk 0:02:59]}  Bg7 {[%clk 0:03:00]} 4. d4 {[%clk 0:02:57]}  Nf6 {[%clk 0:02:58]} 5. O-O {[%clk 0:02:57]}  O-O {[%clk 0:02:58]} 6. c4 {[%clk 0:02:57]}  dxc4 {[%clk 0:02:59]} 7. Na3 {[%clk 0:02:57]}  c3 {[%clk 0:02:50]} 8. bxc3 {[%clk 0:02:56]}  c5 {[%clk 0:02:50]} 9. Nc4 {[%clk 0:02:55]}  Be6 {[%clk 0:02:49]} 10. Nce5 {[%clk 0:02:55]}  Nbd7 {[%clk 0:02:22]} 11. Ng5 {[%clk 0:02:52]}  Bd5 {[%clk 0:02:17]} 12. e4 {[%clk 0:02:50]}  Bc6 {[%clk 0:02:09]} 13. Nxc6 {[%clk 0:02:42]}  bxc6 {[%clk 0:02:09]} 14. e5 {[%clk 0:02:28]}  Nd5 {[%clk 0:02:08]} 15. Bxd5 {[%clk 0:02:24]}  cxd5 {[%clk 0:02:08]} 16. e6 {[%clk 0:02:24]}  Nf6 {[%clk 0:01:50]} 17. exf7+ {[%clk 0:02:23]}  Rxf7 {[%clk 0:01:51]} 18. Nxf7 {[%clk 0:02:20]}  Kxf7 {[%clk 0:01:51]} 19. Ba3 {[%clk 0:02:12]}  c4 {[%clk 0:01:50]} 20. Re1 {[%clk 0:02:10]}  e6 {[%clk 0:01:47]} 21. f3 {[%clk 0:02:08]}  h5 {[%clk 0:01:40]} 22. Qa4 {[%clk 0:02:00]}  Bh6 {[%clk 0:01:20]} 23. Rab1 {[%clk 0:01:57]}  Qc8 {[%clk 0:00:08]} 24. Re2 {[%clk 0:01:54]}  Nd7 {[%clk 0:00:05]} 25. Rbe1 {[%clk 0:01:47]}  Nb6 {[%clk 0:00:06]} 26. Qc2 {[%clk 0:01:47]}  Rb8 {[%clk 0:00:01]} 27. Rxe6 {[%clk 0:01:44]}  Qxe6 {[%clk 0:00:00]} 28. Rxe6 {[%clk 0:01:44]} 1-0


[Site "https://www.chess.com"]